bitfinex-derivatives/quotes_SOLF0:USTF0_20251119
["timestamp","ask_amount","ask_price","bid_price","bid_amount"]
[1763574612547,3.20792915,131.88,131.86,0.0580663]
[1763574612945,3.16,131.87,131.86,0.0580663]
[1763574613241,0.04792915,131.88,131.86,3.1780663]
[1763574613431,0.04792915,131.88,131.86,0.0580663]
[1763574613635,109.3506,131.95,131.87,3.12]
[1763574613840,3.16,131.92,131.84,19.34]
[1763574614150,6.8286,131.91,131.85,3.12]
[1763574614448,10.06768385,131.95,131.85,3.12]
[1763574614640,0.04802839,131.91,131.89,3.16978754]
[1763574615239,0.04802839,131.91,131.89,0.04978754]
[1763574615841,10.03662839,131.91,131.89,0.04978754]
[1763574616047,0.04802839,131.91,131.89,0.04978754]
[1763574616346,3.20802839,131.91,131.89,0.04978754]
[1763574616863,0.04802839,131.91,131.89,0.04978754]
[1763574617438,10.03662839,131.91,131.89,0.04978754]
[1763574617643,6.87662839,131.91,131.89,0.04978754]
[1763574618045,10.03662839,131.91,131.89,0.04978754]
[1763574619249,3.20802839,131.91,131.89,0.04978754]
[1763574620247,0.04802839,131.91,131.89,0.04978754]
[1763574620444,10.03662839,131.91,131.89,0.04978754]
[1763574620644,3.16,131.9,131.83,3.12]
[1763574621249,3.16,131.9,131.84,3.12]
[1763574621749,0.05560203,131.88,131.86,0.04987853]
[1763574622352,0.05560203,131.88,131.86,3.16987853]
[1763574622554,3.21560203,131.88,131.86,0.04987853]
[1763574622748,3.16,131.87,131.8,3.12]
[1763574623155,3.16,131.84,131.8,3.12]
[1763574623850,0.05619793,131.83,131.81,0.05499237]
[1763574624047,3.21619793,131.83,131.81,0.05499237]
[1763574624246,3.16,131.82,131.81,0.05499237]
[1763574624639,3.16,131.82,131.77,3.12]
[1763574624946,0.05619793,131.83,131.77,3.12]
[1763574625141,3.26619793,131.83,131.77,3.12]
[1763574625347,6.8337,131.81,131.77,3.12]
[1763574625749,3.26067248,131.8,131.78,0.04852317]
[1763574626151,3.21,131.79,131.78,0.04852317]
[1763574626454,0.05067248,131.8,131.78,3.42852317]
[1763574626655,0.05067248,131.8,131.78,0.04852317]
[1763574627039,3.26067248,131.8,131.78,0.04852317]
[1763574627247,10.09497248,131.8,131.78,0.04852317]
[1763574627542,0.05067248,131.8,131.78,3.42852317]
[1763574627746,3.21,131.87,131.78,3.42852317]
[1763574627942,6.8317,131.85,131.79,10.2146]
[1763574628147,3.21,131.87,131.8,3.38]
[1763574628348,3.21,131.9,131.8,3.38]
[1763574628545,6.90768385,131.92,131.84,3.38]
[1763574628744,0.05731656,131.89,131.87,0.0546441]
[1763574629451,0.05731656,131.89,131.87,3.4346441]
[1763574630546,3.21,131.99,131.9,3.38]
[1763574630749,3.21,132.01,131.92,3.38]
[1763574630947,3.21,132.01,131.92,10.2077]
[1763574631246,3.21,132.01,131.93,3.38]
[1763574631652,0.05752646,131.98,131.96,0.05392871]
[1763574632350,3.26752646,131.98,131.96,0.05392871]
[1763574634262,109.43422646,131.98,131.96,0.05392871]
[1763574634454,3.16,131.97,131.9,19.58]
[1763574634648,3.16,131.97,131.91,3.38]
[1763574634849,3.16,132.0,131.91,3.38]
[1763574635255,3.16,132.0,131.93,3.38]
[1763574635256,9.9843,132.0,131.93,3.38]
[1763574635459,9.9843,132.0,131.92,6.8278]
[1763574635460,0.05622942,131.98,131.95,3.43804215]
[1763574636164,0.05622942,131.98,131.97,3.38]
[1763574637758,6.822,132.04,131.97,3.38]
[1763574637759,3.15,132.06,131.98,3.28]
[1763574638270,9.9709,132.06,131.98,3.28]
[1763574638759,0.05315564,132.03,132.02,3.28]
[1763574638961,0.05315564,132.03,132.01,0.05682731]
[1763574639159,0.05315564,132.03,132.01,3.33682731]
[1763574639371,106.0794,132.09,132.01,3.33682731]
[1763574639372,9.9705,132.07,132.01,3.33682731]
[1763574639559,9.9705,132.07,132.01,3.28]
[1763574639759,3.15,132.07,132.01,3.28]
[1763574640463,3.20773972,132.05,132.03,0.0569181]
[1763574640867,3.20773972,132.05,131.98,19.48]
[1763574641066,9.972,132.04,131.98,19.48]
[1763574641265,3.15,132.03,131.96,6.8256]
[1763574641467,10.05768385,132.07,131.98,3.28]
[1763574641663,3.15,132.07,131.98,3.28]
[1763574641867,3.15,132.07,131.97,16.2]
[1763574641868,0.0509018,132.04,132.02,3.28]
[1763574642368,3.2009018,132.04,132.01,0.05620697]
[1763574642968,10.0230018,132.04,132.01,0.05620697]
[1763574643158,0.0509018,132.04,132.01,0.05620697]
[1763574643359,3.2009018,132.04,132.01,0.05620697]
[1763574644367,0.0509018,132.04,132.01,3.33620697]
[1763574646575,3.2009018,132.04,132.01,0.05620697]
[1763574646773,0.0509018,132.04,132.01,3.33620697]
[1763574649878,0.0509018,132.04,132.02,3.28]
[1763574650875,0.0509018,132.04,132.02,16.18]
[1763574651068,3.2009018,132.04,132.02,16.18]
[1763574651268,0.0509018,132.04,132.02,16.18]
[1763574651773,10.0227018,132.04,132.02,16.18]
[1763574652073,6.8727018,132.04,132.02,16.18]
[1763574652280,10.0227018,132.04,132.02,16.18]
[1763574652473,0.0509018,132.04,132.02,16.18]
[1763574652977,0.0509018,132.04,132.02,19.46]
[1763574653279,0.0509018,132.04,132.02,3.28]
[1763574653777,0.0509018,132.04,132.01,16.23620697]
[1763574653979,3.2009018,132.04,132.01,0.05620697]
[1763574654278,10.0227018,132.04,132.01,0.05620697]
[1763574654979,3.15,132.03,132.01,0.05620697]
[1763574655188,3.15,132.02,132.01,0.05620697]
[1763574655975,3.2009018,132.04,132.01,0.05620697]
[1763574656173,0.0509018,132.04,132.01,0.05620697]
[1763574656372,3.2009018,132.04,132.01,0.05620697]
[1763574657269,10.0227018,132.04,132.01,0.05620697]
[1763574660381,0.0509018,132.04,132.01,3.33620697]
[1763574660583,3.15,132.08,132.04,3.28]
[1763574660775,3.15,132.08,132.03,26.2822]
[1763574661181,3.15,132.08,132.04,10.1017]
[1763574661378,3.15,132.12,132.04,3.28]
[1763574661580,0.04966049,132.09,132.07,3.33422695]
[1763574661885,0.04966049,132.09,132.07,10.15432695]
[1763574662071,0.04966049,132.09,132.07,3.33422695]
[1763574662772,0.04966049,132.09,132.07,0.05422695]
[1763574663072,0.04966049,132.09,132.07,3.33422695]
[1763574663278,3.19966049,132.09,132.07,0.05422695]
[1763574663676,10.01906049,132.09,132.07,0.05422695]
[1763574664375,0.04966049,132.09,132.07,3.33422695]
[1763574664578,128.8002,132.18,132.07,3.33422695]
[1763574664579,3.15,132.17,132.07,3.33422695]
[1763574664776,3.15,132.17,132.07,3.28]
[1763574664977,3.15,132.17,132.09,3.28]
[1763574665167,3.15,132.17,132.11,109.3401]
[1763574665478,3.15,132.21,132.13,3.28]
[1763574665676,0.05634298,132.18,132.16,0.05238088]
[1763574666067,3.20634298,132.18,132.16,0.05238088]
[1763574666267,3.15,132.14,132.09,16.18]
[1763574666683,3.15,132.12,132.07,3.28]
[1763574667180,3.20198024,132.11,132.08,0.05745639]
[1763574667978,3.15,132.09,132.08,0.05745639]
[1763574668375,3.15,132.09,132.03,16.18]
[1763574668687,6.8208,132.06,132.01,19.46]
[1763574668884,3.15,132.05,131.99,25.61558071]
[1763574669186,6.822,132.04,131.99,3.28]
[1763574669370,0.0547439,132.03,132.0,3.33818324]
[1763574671182,3.2047439,132.03,132.0,0.05818324]
[1763574671378,3.15,132.02,132.0,0.05818324]
[1763574671883,3.2047439,132.03,132.0,0.05818324]
[1763574672076,3.15,132.01,132.0,0.05818324]
[1763574672275,106.1331,132.02,132.0,0.05818324]
[1763574672276,3.15,132.02,132.0,0.05818324]
[1763574672486,9.973,132.02,132.0,0.05818324]
[1763574672682,3.2047439,132.03,132.0,0.05818324]
[1763574673376,0.0547439,132.03,132.0,3.33818324]
[1763574673685,3.15,132.14,132.04,3.28]
[1763574673884,3.15,132.18,132.07,3.28]
[1763574674188,6.8153,132.17,132.09,3.28]
[1763574674392,3.15,132.18,132.09,3.28]
[1763574674585,0.05099728,132.15,132.12,3.33091738]
[1763574675385,0.05099728,132.15,132.14,3.28]
[1763574675584,0.05099728,132.15,132.12,0.05091738]
[1763574676482,3.20099728,132.15,132.12,0.05091738]
[1763574676679,3.15,132.14,132.12,0.05091738]
[1763574676886,0.05099728,132.15,132.12,3.33091738]
[1763574678086,0.05099728,132.15,132.13,3.28]
[1763574678279,3.15,132.23,132.15,3.28]
[1763574678484,3.15,132.23,132.15,10.0958]
[1763574678681,3.15,132.26,132.16,3.28]
[1763574679186,3.15,132.26,132.14,106.0324]
[1763574679187,3.15,132.24,132.15,16.16]
[1763574679387,9.14054913,132.28,132.15,16.16]
[1763574679388,0.04828179,132.21,132.2,109.268]
[1763574679593,3.15,132.28,132.21,6.8125]
[1763574680090,3.15,132.28,132.22,16.16]
[1763574680483,3.15,132.28,132.24,0.04851557]
[1763574680684,3.19,132.26,132.24,0.04851557]
[1763574681083,3.19,132.29,132.24,0.04851557]
[1763574681408,3.19,132.29,132.25,0.05770248]
[1763574681693,3.19,132.33,132.25,3.33770248]
[1763574681888,3.19,132.33,132.28,0.05131723]
[1763574682291,3.19,132.37,132.28,19.49131723]
[1763574682487,9.14054913,132.43,132.28,19.49131723]
[1763574682488,6.95108099,132.43,132.31,0.05767119]
[1763574682686,3.19,132.41,132.36,0.05455139]
[1763574682989,3.19,132.39,132.37,0.05276246]
[1763574683292,3.19,132.39,132.28,16.16]
[1763574683293,105.8765,132.34,132.28,16.16]
[1763574683488,109.0665,132.34,132.28,16.16]
[1763574683688,105.8924,132.32,132.26,3.28]
[1763574683994,109.0928,132.31,132.22,19.44]
[1763574684180,0.04971103,132.28,132.25,3.33534548]
[1763574684388,0.04971103,132.28,132.25,3.32858623]
[1763574684789,0.04971103,132.28,132.25,0.04858623]
[1763574685194,6.85911103,132.28,132.25,0.04858623]
[1763574685395,3.19,132.27,132.25,0.04858623]
[1763574685589,109.1227,132.27,132.25,0.04858623]
[1763574685789,3.19,132.26,132.25,0.04858623]
[1763574685991,0.04971103,132.28,132.25,0.04858623]
[1763574686293,10.04951103,132.28,132.25,0.04858623]
[1763574686500,3.23971103,132.28,132.25,0.04858623]
[1763574686895,0.04971103,132.28,132.25,0.04858623]
[1763574687492,3.19,132.27,132.25,0.04858623]
[1763574688088,0.04971103,132.28,132.25,0.04858623]
[1763574688599,109.16501103,132.28,132.25,0.04858623]
[1763574688794,3.19,132.26,132.25,0.04858623]
[1763574689389,105.9497,132.25,132.19,16.16]
[1763574689594,109.1344,132.26,132.19,16.16]
[1763574689595,3.19,132.26,132.19,16.16]
[1763574689990,3.19,132.26,132.19,19.35]
[1763574690193,109.1308,132.26,132.19,16.16]
[1763574690392,3.19,132.23,132.21,0.05126116]
[1763574690695,109.1542,132.23,132.21,0.05126116]
[1763574690896,6.8133,132.21,132.15,3.19]
[1763574691399,109.1862,132.19,132.11,3.19]
[1763574691708,106.0127,132.17,132.11,3.19]
[1763574691997,3.24595513,132.15,132.13,0.05227902]
[1763574692590,0.05595513,132.15,132.13,3.24227902]
[1763574692996,0.05595513,132.15,132.13,0.05227902]
[1763574693201,3.24595513,132.15,132.13,0.05227902]
[1763574694992,10.06235513,132.15,132.13,0.05227902]
[1763574695699,3.24595513,132.15,132.13,0.05227902]
[1763574695902,109.235,132.13,132.06,3.19]
[1763574696089,10.0086,132.11,132.02,10.0125]
[1763574696294,10.0086,132.11,132.03,3.19]
[1763574696693,10.0094,132.09,132.02,16.16]
[1763574697092,0.05623007,132.07,132.04,0.05786837]
[1763574698905,10.07663007,132.07,132.04,0.05786837]
[1763574699094,3.2,132.06,132.04,0.05786837]
[1763574699704,109.301,132.06,131.97,22.9851]
[1763574700111,109.301,132.06,131.97,26.2451]
[1763574700502,6.8217,132.05,131.97,19.42]
[1763574700702,3.2,132.05,131.97,19.42]
[1763574700904,0.05583979,132.02,132.0,0.05753537]
[1763574703097,0.05583979,132.02,132.0,3.31753537]
[1763574704305,0.05583979,132.02,132.0,0.05753537]
[1763574705015,0.05583979,132.02,132.0,3.31753537]
[1763574706201,3.2,132.07,132.01,3.26]
[1763574706401,3.2,132.11,132.01,3.26]
[1763574706608,3.2,132.1,132.01,3.26]
[1763574706807,3.2,132.1,131.99,106.1538]
[1763574706808,3.2,132.07,131.97,19.42]
[1763574707008,3.2,132.07,132.0,3.26]
[1763574707210,0.05778833,132.05,132.03,10.0821]
[1763574707512,0.05778833,132.05,132.04,3.26]
[1763574708306,0.05778833,132.05,132.02,19.47569621]
[1763574708502,0.05778833,132.05,132.02,16.21569621]
[1763574708905,0.05778833,132.05,132.02,19.47569621]
[1763574710016,0.05778833,132.05,132.02,0.05569621]
[1763574710017,3.25778833,132.05,132.02,0.05569621]
[1763574710511,10.0219,132.04,132.02,0.05569621]
[1763574710908,3.2,132.04,131.97,16.16]
[1763574711114,6.8226,132.03,131.97,16.16]
[1763574711612,3.14,132.01,131.97,16.16]
[1763574712218,0.05553329,132.0,131.98,0.05630201]
[1763574712816,0.05553329,132.0,131.98,3.31630201]
[1763574713117,3.14,132.05,131.98,3.31630201]
[1763574713509,3.14,132.05,131.99,6.8239]
[1763574714019,0.05323704,132.03,132.01,0.05509094]
[1763574718121,3.19323704,132.03,132.01,0.05509094]
[1763574718710,3.14,132.02,132.01,0.05509094]
[1763574720616,0.05323704,132.03,132.01,0.05509094]
[1763574721716,0.05323704,132.03,132.01,3.31509094]
[1763574721914,25.93,132.13,132.03,3.26]
[1763574722117,3.14,132.12,132.04,109.3765]
[1763574722323,3.14,132.12,132.06,6.8204]
[1763574722711,3.14,132.1,132.04,3.26]
[1763574722911,0.05004978,132.08,132.06,0.05343408]
[1763574723316,3.19004978,132.08,132.06,0.05343408]
[1763574723725,0.05004978,132.08,132.06,3.31343408]
[1763574724023,3.14,132.16,132.08,3.26]
[1763574724225,9.9558,132.16,132.08,10.0794]
[1763574724421,3.14,132.16,132.08,3.26]
[1763574724920,3.19320489,132.13,132.11,0.0544829]
[1763574725119,0.05502156,132.13,132.11,0.0544829]
[1763574726614,0.05502156,132.13,132.11,3.3144829]
[1763574726823,0.05502156,132.13,132.11,0.0544829]
[1763574727015,0.05502156,132.13,132.11,3.3144829]
[1763574727225,3.14,132.22,132.16,6.8154]
[1763574727524,3.14,132.22,132.16,22.9754]
[1763574727712,3.14,132.22,132.14,3.26]
[1763574727916,3.14,132.22,132.15,16.16]
[1763574728125,3.14,132.22,132.15,19.34]
[1763574728426,0.05527296,132.2,132.17,0.05304268]
[1763574730139,0.05527296,132.2,132.17,3.23304268]
[1763574730429,3.14,132.28,132.19,9.9938]
[1763574730619,3.14,132.28,132.2,19.34]
[1763574730929,3.14,132.28,132.21,3.18]
[1763574731425,3.14,132.32,132.24,3.18]
[1763574731616,105.847,132.38,132.27,3.23260271]
[1763574731929,3.14,132.36,132.31,0.05374163]
[1763574732128,9.9456,132.36,132.31,0.05374163]
[1763574732422,3.14,132.35,132.31,0.05374163]
[1763574732723,3.14,132.33,132.31,0.05374163]
[1763574733623,109.0245,132.33,132.31,0.05374163]
[1763574733814,3.14,132.32,132.31,0.05374163]
[1763574734018,3.14,132.36,132.31,0.05374163]
[1763574734422,109.0,132.36,132.31,0.05374163]
[1763574734728,3.14,132.35,132.31,0.05374163]
[1763574734930,3.14,132.33,132.31,0.05374163]
[1763574735640,105.9012,132.31,132.23,6.86659686]
[1763574735926,105.9082,132.3,132.23,10.04659686]
[1763574736124,105.9082,132.3,132.23,3.18]
[1763574736125,109.0482,132.3,132.23,3.18]
[1763574736326,6.8092,132.29,132.23,3.18]
[1763574736725,0.05555505,132.27,132.25,0.05209147]
[1763574737124,0.05555505,132.27,132.25,3.23209147]
[1763574737326,3.14,132.33,132.25,3.23209147]
[1763574737530,9.9471,132.33,132.25,3.18]
[1763574737737,3.14,132.33,132.25,3.18]
[1763574737926,3.14,132.36,132.27,3.18]
[1763574738121,3.14,132.35,132.27,3.18]
[1763574738322,3.14,132.35,132.3,0.0501058]
[1763574738928,3.14,132.33,132.3,0.0501058]
[1763574739232,3.14,132.32,132.3,0.0501058]
[1763574739731,115.8401,132.32,132.3,0.0501058]
[1763574739935,3.14,132.32,132.3,0.0501058]
[1763574740320,115.841,132.32,132.3,0.0501058]
[1763574740522,3.14,132.31,132.3,0.0501058]
[1763574740727,105.9163,132.29,132.23,3.18]
[1763574740918,3.14,132.27,132.2,23.00659686]
[1763574741125,105.9481,132.25,132.19,3.18]
[1763574741325,109.0836,132.26,132.19,3.18]
[1763574741326,9.9517,132.24,132.19,3.18]
[1763574741624,3.14,132.22,132.2,0.05514394]
[1763574741832,0.05089373,132.23,132.2,0.05514394]
[1763574742018,3.19089373,132.23,132.2,0.05514394]
[1763574742220,3.14,132.22,132.2,0.05514394]
[1763574742424,9.9528,132.22,132.2,0.05514394]
[1763574742825,3.14,132.22,132.2,0.05514394]
[1763574743136,0.05089373,132.23,132.2,0.05514394]
[1763574743331,3.19089373,132.23,132.2,0.05514394]
[1763574743636,0.05089373,132.23,132.2,0.05514394]
[1763574744330,3.14,132.21,132.2,0.05514394]
[1763574744525,6.814,132.19,132.14,3.18]
[1763574744724,3.14,132.19,132.14,3.18]
[1763574745027,3.05,132.17,132.1,3.18]
[1763574745225,6.8158,132.16,132.1,3.18]
[1763574745425,0.05728789,132.14,132.13,3.25]
[1763574745631,0.05790358,132.15,132.13,3.25]
[1763574745836,0.05322336,132.15,132.13,3.29841718]
[1763574746324,0.00322336,132.15,132.13,3.29841718]
[1763574746521,112.82689686,132.24,132.15,3.25]
[1763574746522,3.05,132.24,132.15,3.25]
[1763574746929,3.05,132.24,132.16,10.0653]
[1763574747231,3.05,132.24,132.17,3.25]
[1763574747434,0.05227197,132.22,132.19,0.05404616]
[1763574748131,3.10227197,132.22,132.19,0.05404616]
[1763574748831,9.8633,132.21,132.19,0.05404616]
[1763574749035,3.05,132.2,132.19,0.05404616]
[1763574749426,3.10227197,132.22,132.19,0.05404616]
[1763574750030,9.8633,132.21,132.19,0.05404616]
[1763574750229,3.05,132.21,132.19,0.05404616]
[1763574750734,3.05,132.17,132.09,3.25]
[1763574751130,3.05,132.17,132.1,3.25]
[1763574751840,3.05,132.17,132.08,135.59051342]
[1763574751841,0.05687342,132.15,132.12,3.30421302]
[1763574752137,0.05533703,132.15,132.12,3.30644141]
[1763574753128,3.05,132.24,132.14,3.25]
[1763574753335,3.05,132.24,132.14,10.11659686]
[1763574753540,3.05,132.24,132.15,6.8159]
[1763574753729,3.05,132.24,132.14,10.11659686]
[1763574753927,3.05,132.19,132.11,6.86659686]
[1763574754131,0.05250246,132.16,132.14,0.04867974]
[1763574755636,105.9731,132.22,132.14,3.29867974]
[1763574755836,9.8637,132.2,132.14,3.25]
[1763574756043,3.05,132.2,132.11,19.39]
[1763574756538,3.05,132.2,132.12,3.25]
[1763574756741,3.05,132.2,132.14,0.05661425]
[1763574756947,9.8641,132.19,132.14,0.05661425]
[1763574757146,3.05,132.18,132.15,0.04853641]
[1763574758846,109.0449,132.22,132.15,0.04853641]
[1763574759036,3.07,132.21,132.15,0.04853641]
[1763574759540,6.8142,132.19,132.15,0.04853641]
[1763574759730,3.07,132.21,132.15,0.04853641]
[1763574759934,3.07,132.2,132.15,0.04853641]
[1763574760245,105.9482,132.25,132.16,3.29825214]
[1763574760438,109.0182,132.25,132.19,0.05353265]
[1763574760644,6.8125,132.22,132.19,0.05353265]
[1763574761438,3.07,132.26,132.19,3.30353265]
[1763574761646,3.07,132.3,132.19,109.29653265]
[1763574761944,108.9488,132.34,132.26,3.25]
[1763574762144,3.07,132.33,132.29,0.05238543]
[1763574763244,105.8924,132.32,132.29,0.05238543]
[1763574763443,9.8779,132.31,132.29,0.00238543]
[1763574763641,105.8924,132.32,132.23,3.25]
[1763574763642,3.07,132.3,132.23,3.25]
[1763574764148,6.8089,132.29,132.23,10.0618]
[1763574764345,3.07,132.3,132.23,10.0618]
[1763574764737,0.0494895,132.28,132.25,0.05303551]
[1763574766750,0.0494895,132.28,132.25,3.30303551]
[1763574767850,0.0494895,132.28,132.25,10.11373551]
[1763574768046,0.0494895,132.28,132.26,3.25]
[1763574768451,3.07,132.33,132.27,3.25]
[1763574768639,3.07,132.37,132.27,3.25]
[1763574768945,3.07,132.37,132.28,6.8092]
[1763574769143,3.07,132.37,132.27,3.25]
[1763574769451,3.07,132.37,132.31,0.05743136]
[1763574769452,3.07,132.34,132.31,0.05743136]
[1763574770954,3.07,132.33,132.31,0.05743136]
[1763574772048,9.8772,132.33,132.31,0.05743136]
[1763574772241,3.07,132.32,132.31,0.05743136]
[1763574773655,108.9623,132.32,132.24,3.25]
[1763574773854,3.07,132.32,132.24,3.25]
[1763574774452,6.8079,132.31,132.24,10.0613]
[1763574774757,0.04847136,132.29,132.27,0.04788643]
[1763574776450,0.04847136,132.29,132.27,3.29788643]
[1763574778155,3.07,132.37,132.27,3.29788643]
[1763574778353,3.07,132.37,132.27,3.25]
[1763574778552,6.8061,132.35,132.29,6.8086]
[1763574778748,3.07,132.37,132.27,3.25]
[1763574778948,3.07,132.36,132.27,19.39]
[1763574779146,3.07,132.36,132.3,0.048379]
[1763574779350,9.8766,132.34,132.3,0.048379]
[1763574779951,3.07,132.34,132.3,0.048379]
[1763574780257,3.07,132.37,132.3,3.298379]
[1763574780449,3.07,132.45,132.33,3.25]
[1763574780648,3.07,132.43,132.38,0.05203274]
[1763574780952,3.07,132.43,132.38,3.30203274]
[1763574781159,3.07,132.47,132.38,3.30203274]
[1763574781456,3.07,132.46,132.41,0.04945739]
[1763574781661,108.8221,132.5,132.41,3.29945739]
[1763574781849,9.8703,132.46,132.44,0.05144639]
[1763574782156,3.07,132.44,132.37,3.25]
[1763574782358,3.07,132.44,132.34,6.86659686]
[1763574782359,6.8029,132.41,132.34,6.86659686]
[1763574782558,6.8029,132.41,132.35,3.25]
[1763574782758,6.8029,132.41,132.35,26.13036146]
[1763574782954,0.05738658,132.39,132.37,0.05157383]
[1763574783152,0.05738658,132.39,132.37,3.30157383]
[1763574783356,3.12738658,132.39,132.37,0.05157383]
[1763574783554,9.93128658,132.39,132.37,0.05157383]
[1763574783755,0.05738658,132.39,132.37,0.05157383]
[1763574783962,3.12738658,132.39,132.37,0.05157383]
[1763574784156,0.05738658,132.39,132.37,0.05157383]
[1763574785466,9.93108658,132.39,132.37,0.05157383]
[1763574785663,0.05738658,132.39,132.37,0.05157383]
[1763574785864,0.05738658,132.39,132.37,3.30157383]
[1763574786161,3.07,132.45,132.38,3.25]
[1763574786363,3.07,132.48,132.38,3.25]
[1763574786563,6.8,132.47,132.39,3.25]
[1763574786769,3.07,132.48,132.39,3.25]
[1763574786970,6.7982,132.5,132.42,3.25]
[1763574787162,3.07,132.52,132.45,0.05344525]
[1763574787468,9.8672,132.52,132.45,0.05344525]
[1763574787668,3.07,132.52,132.45,0.05344525]
[1763574787868,105.7564,132.49,132.45,0.05344525]
[1763574788070,3.17,132.48,132.45,0.05344525]
[1763574788869,3.17,132.47,132.45,0.05344525]
[1763574789473,9.9698,132.47,132.45,0.05344525]
[1763574789658,3.17,132.47,132.45,0.05344525]
[1763574789857,9.9699,132.47,132.45,0.05344525]
[1763574790068,3.17,132.46,132.38,3.21]
[1763574790471,6.7998,132.47,132.4,3.21]
[1763574791163,0.05400786,132.45,132.42,0.05550907]
[1763574791463,3.22400786,132.45,132.42,0.05550907]
[1763574791659,0.05400786,132.45,132.42,0.05550907]
[1763574792059,6.85480786,132.45,132.42,0.05550907]
[1763574792466,0.05400786,132.45,132.42,0.05550907]
[1763574792858,3.22400786,132.45,132.42,0.05550907]
[1763574793061,3.22400786,132.45,132.42,3.26550907]
[1763574793062,0.05400786,132.45,132.42,3.26550907]
[1763574793765,0.05400786,132.45,132.43,3.21]
[1763574794267,0.05400786,132.45,132.42,3.26550907]
[1763574797965,3.22400786,132.45,132.42,0.05550907]
[1763574798571,9.9712,132.44,132.42,0.05550907]
[1763574798770,3.17,132.44,132.42,0.05550907]
[1763574798972,0.05400786,132.45,132.42,3.26550907]
[1763574799875,3.22400786,132.45,132.42,0.05550907]
[1763574800365,9.9713,132.44,132.42,0.05550907]
[1763574800766,3.17,132.43,132.42,0.05550907]
[1763574801169,3.17,132.43,132.37,16.12]
[1763574801170,9.9727,132.41,132.36,3.21]
[1763574801363,3.17,132.41,132.36,3.21]
[1763574801568,3.17,132.45,132.36,3.21]
[1763574801765,6.8012,132.44,132.36,3.21]
[1763574801971,3.17,132.45,132.36,3.21]
[1763574802366,0.05694634,132.42,132.39,0.04810644]
[1763574802571,0.05694634,132.42,132.39,3.25810644]
[1763574803474,108.9291,132.49,132.4,3.21]
[1763574803475,3.17,132.49,132.4,3.21]
[1763574803665,3.17,132.49,132.42,10.0121]
[1763574804478,3.21876539,132.47,132.44,0.04872085]
[1763574804670,0.04876539,132.47,132.45,3.21]
[1763574804976,0.04876539,132.47,132.45,10.0105]
[1763574805177,0.04876539,132.47,132.46,3.36]
[1763574806780,0.04876539,132.47,132.44,3.41061117]
[1763574808079,3.23876539,132.47,132.44,0.05061117]
[1763574808383,3.19,132.45,132.44,0.05061117]
[1763574810175,0.04876539,132.47,132.44,0.05061117]
[1763574810582,3.23876539,132.47,132.44,0.05061117]
[1763574810782,3.19,132.45,132.44,0.05061117]
[1763574811082,3.19,132.45,132.38,3.36]
[1763574811284,3.19,132.43,132.38,3.36]
[1763574811579,144.6572,132.48,132.38,3.36]
[1763574811580,108.9572,132.48,132.38,3.36]
[1763574811773,6.8003,132.46,132.38,10.164]
[1763574811972,0.05117607,132.43,132.41,0.04897521]
[1763574812177,0.04902091,132.43,132.41,0.04897521]
[1763574812378,10.04092091,132.43,132.41,0.04897521]
[1763574812574,3.19,132.42,132.36,3.36]
[1763574812787,3.19,132.45,132.37,3.36]
[1763574812980,6.8013,132.44,132.37,3.36]
[1763574813181,3.19,132.45,132.37,3.36]
[1763574813477,3.19,132.45,132.37,10.1646]
[1763574813478,6.8013,132.44,132.37,10.1646]
[1763574813782,0.04935224,132.42,132.39,3.41232826]
[1763574815180,6.7995,132.48,132.39,3.41232826]
[1763574815484,3.19,132.49,132.39,3.36]